lending/lending_fUSD_20250429
["ID","MTS","AMOUNT","RATE_DAILY","PERIOD"]
[359281461,1745891457850,-410.35491655,0.00027945,2]
[359281462,1745891457859,-470.0,0.00027945,2]
[359281463,1745891457869,-698.7,0.00027945,2]
[359281464,1745891457878,-470.0,0.00027945,2]
[359281465,1745891457888,-470.0,0.00027945,2]
[359281466,1745891457897,-470.0,0.00027945,2]
[359281467,1745891457907,-470.0,0.00027945,2]
[359281468,1745891457916,-470.0,0.00027945,2]
[359281469,1745891457925,-470.0,0.00027945,2]
[359281470,1745891457935,-470.0,0.00027945,2]
[359281471,1745891457944,-470.0,0.00027945,2]
[359281472,1745891457955,-470.0,0.00027945,2]
[359281473,1745891457964,-470.0,0.00027945,2]
[359281474,1745891457974,-1073.63,0.00027945,2]
[359281475,1745891457983,-470.0,0.00027945,2]
[359281476,1745891457993,-470.0,0.00027945,2]
[359281477,1745891458004,-470.0,0.00027945,2]
[359281478,1745891458014,-470.0,0.00027945,2]
[359281479,1745891458023,-470.0,0.00027945,2]
[359281480,1745891458033,-678.29,0.00027945,2]
[359281481,1745891458042,-470.0,0.00027945,2]
[359281482,1745891458053,-470.0,0.00027945,2]
[359281483,1745891458063,-470.0,0.00027945,2]
[359281484,1745891458074,-470.0,0.00027945,2]
[359281485,1745891458083,-470.0,0.00027945,2]
[359281486,1745891458093,-470.0,0.00027945,2]
[359281487,1745891458103,-470.0,0.00027945,2]
[359281488,1745891458112,-470.0,0.00027945,2]
[359281489,1745891458123,-470.0,0.00027945,2]
[359281490,1745891458132,-470.0,0.00027945,2]
[359281491,1745891458141,-470.0,0.00027945,2]
[359281492,1745891458151,-470.0,0.00027945,2]
[359281493,1745891458160,-470.0,0.00027945,2]
[359281494,1745891458171,-470.0,0.00027945,2]
[359281495,1745891458180,-470.0,0.00027945,2]
[359281496,1745891458189,-470.0,0.00027945,2]
[359281497,1745891458199,-470.0,0.00027945,2]
[359281498,1745891458208,-470.92,0.00027945,2]
[359281499,1745891458218,-470.0,0.00027945,2]
[359281500,1745891458227,-470.0,0.00027945,2]
[359281501,1745891458236,-470.0,0.00027945,2]
[359281502,1745891458246,-470.0,0.00027945,2]
[359281503,1745891458255,-470.0,0.00027945,2]
[359281504,1745891458264,-470.0,0.00027945,2]
[359281505,1745891458274,-470.0,0.00027945,2]
[359281506,1745891458283,-470.0,0.00027945,2]
[359281507,1745891458293,-470.0,0.00027945,2]
[359281508,1745891458302,-695.67,0.00027945,2]
[359281509,1745891458311,-470.0,0.00027945,2]
[359281510,1745891458322,-470.0,0.00027945,2]
[359281511,1745891458331,-470.0,0.00027945,2]
[359281512,1745891458340,-470.0,0.00027945,2]
[359281513,1745891458350,-470.0,0.00027945,2]
[359281514,1745891458361,-470.0,0.00027945,2]
[359281515,1745891458370,-470.0,0.00027945,2]
[359281516,1745891458379,-227.74674908,0.00027945,2]
[359281517,1745891458388,-470.0,0.00027945,2]
[359281518,1745891458397,-512.93,0.00027945,2]
[359281519,1745891458406,-549.33,0.00027945,2]
[359281520,1745891458416,-400.0,0.00027945,2]
[359281521,1745891458425,-470.0,0.00027945,2]
[359281522,1745891458435,-470.0,0.00027945,2]
[359281523,1745891458444,-470.0,0.00027945,2]
[359281524,1745891458454,-470.0,0.00027945,2]
[359281525,1745891458463,-470.0,0.00027945,2]
[359281526,1745891458473,-470.0,0.00027945,2]
[359281527,1745891458482,-470.0,0.00027945,2]
[359281528,1745891458492,-489.74,0.00027945,2]
[359281529,1745891458501,-470.0,0.00027945,2]
[359281530,1745891458511,-470.0,0.00027945,2]
[359281531,1745891458520,-470.0,0.00027945,2]
[359281532,1745891458530,-926.6,0.00027945,2]
[359281533,1745891458539,-470.0,0.00027945,2]
[359281534,1745891458549,-470.0,0.00027945,2]
[359281535,1745891458558,-470.0,0.00027945,2]
[359281536,1745891458567,-55510.47,0.00027945,2]
[359281537,1745891458576,-470.0,0.00027945,2]
[359281538,1745891458585,-470.0,0.00027945,2]
[359281539,1745891458595,-470.0,0.00027945,2]
[359281540,1745891458604,-470.0,0.00027945,2]
[359281541,1745891458614,-470.0,0.00027945,2]
[359281542,1745891458624,-470.0,0.00027945,2]
[359281543,1745891458633,-470.0,0.00027945,2]
[359281544,1745891458643,-577.68422035,0.00027945,2]
[359281545,1745891458652,-470.0,0.00027945,2]
[359281546,1745891458662,-470.0,0.00027945,2]
[359281547,1745891458672,-470.0,0.00027945,2]
[359281548,1745891458681,-1415.32,0.00027945,2]
[359281549,1745891458690,-470.0,0.00027945,2]
[359281550,1745891458701,-470.0,0.00027945,2]
[359281551,1745891458710,-470.0,0.00027945,2]
[359281552,1745891458719,-470.0,0.00027945,2]
[359281553,1745891458729,-470.0,0.00027945,2]
[359281554,1745891458738,-618.86,0.00027945,2]
[359281555,1745891458748,-4571.21,0.00027945,2]
[359281556,1745891458757,-470.0,0.00027945,2]
[359281557,1745891458768,-470.0,0.00027945,2]
[359281558,1745891458778,-470.0,0.00027945,2]
[359281559,1745891458787,-1013.11,0.00027945,2]
[359281560,1745891458797,-548.27454384,0.00027945,2]
[359281561,1745891458807,-250.0,0.00027945,2]
[359281562,1745891458817,-992.65,0.00027945,2]
[359281563,1745891458826,-470.0,0.00027945,2]
[359281564,1745891458836,-586.6,0.00027945,2]
[359281565,1745891458847,-1684.71,0.00027945,2]
[359281566,1745891458856,-470.0,0.00027945,2]
[359281567,1745891458866,-470.0,0.00027945,2]
[359281568,1745891458875,-470.0,0.00027945,2]
[359281569,1745891458884,-470.0,0.00027945,2]
[359281570,1745891458894,-470.0,0.00027945,2]
[359281571,1745891458903,-14565.27,0.00027945,2]
[359281572,1745891458912,-470.0,0.00027945,2]
[359281573,1745891459066,-470.0,0.00027945,2]
[359281574,1745891459077,-470.0,0.00027945,2]
[359281575,1745891459087,-470.0,0.00027945,2]
[359281576,1745891459096,-470.0,0.00027945,2]
[359281577,1745891459106,-724.463176,0.00027945,2]
[359281578,1745891459116,-470.0,0.00027945,2]
[359281579,1745891459125,-470.0,0.00027945,2]
[359281580,1745891459134,-470.0,0.00027945,2]
[359281581,1745891459144,-336.21434332,0.00027945,2]
[359281582,1745891459154,-470.0,0.00027945,2]
[359281583,1745891459163,-470.0,0.00027945,2]
[359281584,1745891459172,-470.0,0.00027945,2]
[359281585,1745891459181,-470.0,0.00027945,2]
[359281586,1745891459191,-470.0,0.00027945,2]
[359281587,1745891459201,-499.1,0.00027945,2]
[359281588,1745891459210,-746.52,0.00027945,2]
[359281589,1745891459220,-470.0,0.00027945,2]
[359281590,1745891459229,-470.0,0.00027945,2]
[359281591,1745891459239,-560.29,0.00027945,2]
[359281592,1745891459248,-151.0,0.00027945,7]
[359281593,1745891459258,-470.0,0.00027945,2]
[359281594,1745891459268,-504.68,0.00027945,2]
[359281595,1745891459278,-470.0,0.00027945,2]
[359281596,1745891459288,-470.0,0.00027945,2]
[359281597,1745891459300,-558.42,0.00027945,2]
[359281598,1745891459309,-470.0,0.00027945,2]
[359281599,1745891459320,-470.0,0.00027945,2]
[359281600,1745891459330,-470.0,0.00027945,2]
[359281601,1745891459339,-5545.091631,0.00027945,2]
[359281602,1745891459350,-208.43566268,0.00027945,2]
[359281603,1745891459360,-470.0,0.00027945,2]
[359281604,1745891459372,-470.0,0.00027945,2]
[359281605,1745891459381,-470.0,0.00027945,2]
[359281606,1745891459390,-470.0,0.00027945,2]
[359281607,1745891459400,-1047.69,0.00027945,2]
[359281608,1745891459410,-300.0,0.00027945,2]
[359281609,1745891459419,-470.0,0.00027945,2]
[359281610,1745891459430,-470.0,0.00027945,2]
[359281611,1745891459440,-470.0,0.00027945,2]
[359281612,1745891459450,-470.0,0.00027945,2]
[359281613,1745891459460,-470.0,0.00027945,2]
[359281614,1745891459469,-312.4748228,0.00027945,2]
[359281615,1745891459479,-472.85,0.00027945,2]
[359281616,1745891459489,-470.0,0.00027945,2]
[359281617,1745891459499,-437.47151271,0.00027945,2]
[359281618,1745891459509,-470.0,0.00027945,2]
[359281619,1745891459520,-470.0,0.00027945,2]
[359281620,1745891459529,-1132.811667,0.00027945,2]
[359281621,1745891459539,-580.52650533,0.00027945,2]
[359281622,1745891459548,-470.0,0.00027945,2]
[359281623,1745891459558,-2265.36,0.00027945,2]
[359281624,1745891459567,-470.0,0.00027945,2]
[359281625,1745891459577,-470.0,0.00027945,2]
[359281626,1745891459588,-483.38,0.00027945,2]
[359281627,1745891459598,-1175.89,0.00027945,2]
[359281628,1745891459608,-470.0,0.00027945,2]
[359281629,1745891459618,-470.0,0.00027945,2]
[359281630,1745891459628,-866.46,0.00027945,2]
[359281631,1745891459637,-588.59,0.00027945,2]
[359281632,1745891459648,-470.0,0.00027945,2]
[359281633,1745891459659,-210.18825711,0.00027945,2]
[359281634,1745891459670,-470.0,0.00027945,2]
[359281635,1745891459681,-470.0,0.00027945,2]
[359281636,1745891459691,-699.58,0.00027945,2]
[359281637,1745891459701,-470.0,0.00027945,2]
[359281638,1745891459711,-470.0,0.00027945,2]
[359281639,1745891459721,-470.0,0.00027945,2]
[359281640,1745891459731,-470.0,0.00027945,2]
[359281641,1745891459740,-470.0,0.00027945,2]
[359281642,1745891459749,-470.0,0.00027945,2]
[359281643,1745891459760,-540.83,0.00027945,2]
[359281644,1745891459773,-679.4,0.00027945,2]
[359281645,1745891459782,-470.0,0.00027945,2]
[359281646,1745891459792,-470.0,0.00027945,2]
[359281647,1745891459801,-470.0,0.00027945,2]
[359281648,1745891459811,-477.45,0.00027945,2]
[359281649,1745891459822,-470.0,0.00027945,2]
[359281650,1745891459831,-544.94477294,0.00027945,2]
[359281651,1745891459843,-470.0,0.00027945,2]
[359281652,1745891459854,-470.0,0.00027945,2]
[359281653,1745891459864,-520.07,0.00027945,2]
[359281654,1745891459874,-866.58,0.00027945,2]
[359281655,1745891459884,-742.91,0.00027945,2]
[359281656,1745891459894,-470.0,0.00027945,2]
[359281657,1745891459903,-470.0,0.00027945,2]
[359281658,1745891459915,-470.0,0.00027945,2]
[359281659,1745891459925,-470.0,0.00027945,2]
[359281660,1745891459934,-470.0,0.00027945,2]
[359281661,1745891459944,-470.0,0.00027945,2]
[359281662,1745891459954,-470.0,0.00027945,2]
[359281663,1745891459964,-470.0,0.00027945,2]
[359281664,1745891459973,-470.0,0.00027945,2]
[359281665,1745891459983,-470.0,0.00027945,2]
[359281666,1745891459992,-470.0,0.00027945,2]
[359281667,1745891460002,-477.26267962,0.00027945,2]
[359281668,1745891460012,-470.0,0.00027945,2]
[359281669,1745891460022,-470.0,0.00027945,2]
[359281670,1745891460031,-470.0,0.00027945,2]
[359281671,1745891460041,-470.0,0.00027945,2]
[359281672,1745891460051,-470.0,0.00027945,2]
[359281673,1745891460062,-673.27,0.00027945,2]
[359281674,1745891460072,-470.0,0.00027945,2]
[359281675,1745891460083,-470.0,0.00027945,2]
[359281676,1745891460093,-1093.29,0.00027945,2]
[359281677,1745891460103,-470.0,0.00027945,2]
[359281678,1745891460112,-488.64,0.00027945,2]
[359281679,1745891460122,-470.0,0.00027945,2]
[359281680,1745891460131,-470.0,0.00027945,2]
[359281681,1745891460141,-941.22,0.00027945,2]
[359281682,1745891460150,-522.04,0.00027945,2]
[359281683,1745891460160,-470.0,0.00027945,2]
[359281684,1745891460170,-470.0,0.00027945,2]
[359281685,1745891460180,-470.0,0.00027945,2]
[359281686,1745891460190,-470.0,0.00027945,2]
[359281687,1745891460200,-529.28,0.00027945,2]
[359281688,1745891460209,-470.0,0.00027945,2]
[359281689,1745891460219,-470.0,0.00027945,2]
[359281690,1745891460229,-1099.06,0.00027945,2]
[359281691,1745891460238,-470.0,0.00027945,2]
[359281692,1745891460248,-1006.54,0.00027945,2]
[359281693,1745891460257,-780.67,0.00027945,2]
[359281694,1745891460267,-470.0,0.00027945,2]
[359281695,1745891460276,-470.0,0.00027945,2]
[359281696,1745891460286,-470.0,0.00027945,2]
[359281697,1745891460296,-470.0,0.00027945,2]
[359281698,1745891460305,-470.0,0.00027945,2]
[359281699,1745891460315,-470.0,0.00027945,2]
[359281700,1745891460325,-470.0,0.00027945,2]
[359281701,1745891460335,-470.0,0.00027945,2]
[359281702,1745891460344,-349.58235253,0.00027945,2]
[359281703,1745891460353,-763.46,0.00027945,2]
[359281704,1745891460362,-503.03,0.00027945,2]
[359281705,1745891460371,-658.47,0.00027945,2]
[359281706,1745891460381,-470.0,0.00027945,2]
[359281707,1745891460390,-470.0,0.00027945,2]
[359281708,1745891460399,-547.94515587,0.00027945,2]
[359281709,1745891460408,-470.0,0.00027945,2]
[359281710,1745891460417,-500.0,0.00027945,2]
[359281711,1745891460426,-470.0,0.00027945,2]
[359281712,1745891460435,-470.0,0.00027945,2]
[359281713,1745891460445,-470.0,0.00027945,2]
[359281714,1745891460455,-470.0,0.00027945,2]
[359281715,1745891460473,-470.0,0.00027945,2]
[359281716,1745891460489,-509.6,0.00027945,2]
[359281717,1745891460499,-470.0,0.00027945,2]
[359281718,1745891460508,-470.0,0.00027945,2]
[359281719,1745891460518,-470.0,0.00027945,2]
[359281720,1745891460527,-2398.53,0.00027945,2]
[359281721,1745891460536,-1318.81,0.00027945,2]
[359281722,1745891460546,-470.0,0.00027945,2]
[359281723,1745891460555,-574.52,0.00027945,2]
[359281724,1745891460564,-470.0,0.00027945,2]
[359281725,1745891460575,-1126.5,0.00027945,2]
[359281726,1745891460584,-561.78,0.00027945,2]
[359281727,1745891460594,-687.67,0.00027945,2]
[359281728,1745891460603,-541.16,0.00027945,2]
[359281729,1745891460612,-470.0,0.00027945,2]
[359281730,1745891460622,-1991.96,0.00027945,2]
[359281731,1745891460631,-326.99267636,0.00027945,2]
[359281732,1745891460640,-470.0,0.00027945,2]
[359281733,1745891460649,-470.0,0.00027945,2]
[359281734,1745891460659,-470.0,0.00027945,2]
[359281735,1745891460668,-470.0,0.00027945,2]
[359281736,1745891460679,-515.09,0.00027945,2]
[359281737,1745891460688,-470.0,0.00027945,2]
[359281738,1745891460697,-470.0,0.00027945,2]
[359281739,1745891460707,-470.0,0.00027945,2]
[359281740,1745891460717,-470.0,0.00027945,2]
[359281741,1745891460726,-470.0,0.00027945,2]
[359281742,1745891460736,-470.0,0.00027945,2]
[359281743,1745891460746,-612.15672378,0.00027945,2]
[359281744,1745891460760,-470.0,0.00027945,2]
[359281745,1745891460774,-470.0,0.00027945,2]
[359281746,1745891460787,-939.33,0.00027945,2]
[359281747,1745891460797,-498.44,0.00027945,2]
[359281748,1745891460809,-470.0,0.00027945,2]
[359281749,1745891460818,-530.34,0.00027945,2]
[359281750,1745891460831,-470.0,0.00027945,2]
[359281751,1745891460842,-470.0,0.00027945,2]
[359281752,1745891460852,-9495.93,0.00027945,2]
[359281753,1745891460862,-470.0,0.00027945,2]
[359281754,1745891460871,-470.0,0.00027945,2]
[359281755,1745891460881,-470.0,0.00027945,2]
[359281756,1745891460891,-470.0,0.00027945,2]
[359281757,1745891460900,-219.03813855,0.00027945,2]
[359281758,1745891460911,-470.0,0.00027945,2]
[359281759,1745891460920,-499.51,0.00027945,2]
[359281760,1745891460930,-698.61,0.00027945,2]
[359281761,1745891460939,-470.0,0.00027945,2]
[359281762,1745891460949,-470.0,0.00027945,2]
[359281763,1745891460959,-6840.16,0.00027945,2]
[359281764,1745891460968,-470.0,0.00027945,2]
[359281765,1745891460978,-470.0,0.00027945,2]
[359281766,1745891460987,-470.0,0.00027945,2]
[359281767,1745891460996,-470.0,0.00027945,2]
[359281768,1745891461006,-1529.65,0.00027945,2]
[359281769,1745891461015,-470.0,0.00027945,2]
[359281770,1745891461024,-470.0,0.00027945,2]
[359281771,1745891461034,-470.0,0.00027945,2]
[359281772,1745891461045,-534.45,0.00027945,2]
[359281773,1745891461055,-470.0,0.00027945,2]
[359281774,1745891461064,-470.0,0.00027945,2]
[359281775,1745891461076,-470.0,0.00027945,2]
[359281776,1745891461085,-470.0,0.00027945,2]
[359281777,1745891461095,-470.0,0.00027945,2]
[359281778,1745891461104,-523.02,0.00027945,2]
[359281779,1745891461113,-560.49630413,0.00027945,2]
[359281780,1745891461123,-470.0,0.00027945,2]
[359281781,1745891461132,-470.0,0.00027945,2]
[359281782,1745891461141,-470.0,0.00027945,2]
[359281783,1745891461151,-567.4071326,0.00027945,2]
[359281784,1745891461160,-470.0,0.00027945,2]
[359281785,1745891461170,-470.0,0.00027945,2]
[359281786,1745891461180,-705.97,0.00027945,2]
[359281787,1745891461189,-470.0,0.00027945,2]
[359281788,1745891461198,-470.0,0.00027945,2]
[359281789,1745891461208,-470.0,0.00027945,2]
[359281790,1745891461217,-625.13,0.00027945,2]
[359281791,1745891461227,-470.0,0.00027945,2]
[359281792,1745891461236,-470.0,0.00027945,2]
[359281793,1745891461246,-470.0,0.00027945,2]
[359281794,1745891461255,-554.64,0.00027945,2]
[359281795,1745891461265,-470.0,0.00027945,2]
[359281796,1745891461275,-470.0,0.00027945,2]
[359281797,1745891461284,-470.0,0.00027945,2]
[359281798,1745891461293,-500.0,0.00027973,2]
[359281799,1745891461303,-500.0,0.00027973,5]
[359281800,1745891461312,-500.99273694,0.00027973,5]
[359281801,1745891461323,-222.34650816,0.00027973,5]
[359281802,1745891461332,-500.0,0.00027973,5]
[359281803,1745891461342,-500.0,0.00027973,5]
[359281804,1745891461352,-500.0,0.00027973,5]
[359281805,1745891461361,-500.0,0.00027973,5]
[359281806,1745891461371,-3595.20961907,0.00028027,2]
[359281807,1745891461380,-5714.3562124,0.00028027,2]
[359281808,1745891461390,-200.0,0.0002805,2]
[359281809,1745891461399,-500.0,0.0002805,3]
[359281810,1745891461410,-151.0,0.00028108,7]
[359281811,1745891461419,-151.0,0.00028108,7]
[359281812,1745891461429,-206.282,0.00028108,7]
[359281813,1745891461439,-206.282,0.00028108,7]
[359281814,1745891461449,-150.0,0.00028118,2]
[359281815,1745891461458,-151.0,0.00028208,7]
[359281816,1745891461468,-151.0,0.00028208,7]
[359281817,1745891461618,-151.0,0.00028208,7]
[359281818,1745891461628,-151.0,0.00028208,7]
[359281819,1745891461638,-151.0,0.00028209,7]
[359281820,1745891461647,-453.47884995,0.0002821,2]
[359281821,1745891461658,-6573.43843983,0.0002821,7]
[359281822,1745891461668,-795.0,0.00028217,2]
[359281823,1745891461679,-470.0,0.00028217,2]
[359281824,1745891461689,-1129.56,0.00028217,2]
[359281825,1745891461699,-470.0,0.00028217,2]
[359281826,1745891461709,-905.59,0.00028217,2]
[359281827,1745891461718,-477.97,0.00028217,2]
[359281828,1745891461727,-470.0,0.00028217,2]
[359281829,1745891461736,-849.57,0.00028217,2]
[359281830,1745891461746,-576.52,0.00028217,2]
[359281831,1745891461756,-600.65403006,0.00028218,2]
[359281832,1745891461767,-470.0,0.00028218,2]
[359281833,1745891461779,-330.45646822,0.00028218,2]
[359281834,1745891461788,-470.0,0.00028218,2]
[359281835,1745891461797,-628.36,0.00028218,2]
[359281836,1745891461808,-470.0,0.00028218,2]
[359281837,1745891461818,-235.84347236,0.00028218,2]
[359281838,1745891461828,-609.86,0.00028218,2]
[359281839,1745891461837,-754.55,0.00028218,2]
[359281840,1745891461848,-872.05,0.00028218,2]
[359281841,1745891461857,-470.0,0.00028218,2]
[359281842,1745891461867,-470.0,0.00028218,2]
[359281843,1745891461876,-470.0,0.00028218,2]
[359281844,1745891461885,-470.0,0.00028218,2]
[359281845,1745891461894,-470.0,0.00028218,2]
[359281846,1745891461904,-470.0,0.00028218,2]
[359281847,1745891461914,-1290.26,0.00028218,2]
[359281848,1745891461923,-587.15,0.00028218,2]
[359281849,1745891461933,-470.0,0.00028218,2]
[359281850,1745891461942,-532.45,0.00028218,2]
[359281851,1745891461951,-470.0,0.00028218,2]
[359281852,1745891461961,-470.0,0.00028218,2]
[359281853,1745891461971,-645.07,0.00028218,2]
[359281854,1745891461981,-641.65,0.00028218,2]
[359281855,1745891461991,-470.0,0.00028218,2]
[359281856,1745891462001,-470.0,0.00028218,2]
[359281857,1745891462011,-608.47,0.00028218,2]
[359281858,1745891462021,-470.0,0.00028218,2]
[359281859,1745891462030,-470.0,0.00028218,2]
[359281860,1745891462040,-645.34,0.00028218,2]
[359281861,1745891462049,-700.47,0.00028218,2]
[359281862,1745891462059,-481.52,0.00028218,2]
[359281863,1745891462068,-538.62,0.00028218,2]
[359281864,1745891462079,-470.0,0.00028218,2]
[359281865,1745891462088,-599.91,0.00028218,2]
[359281866,1745891462097,-506.91,0.00028218,2]
[359281867,1745891462107,-470.0,0.00028218,2]
[359281868,1745891462117,-470.0,0.00028218,2]
[359281869,1745891462126,-470.0,0.00028218,2]
[359281870,1745891462136,-736.35,0.00028218,2]
[359281871,1745891462145,-470.0,0.00028218,2]
[359281872,1745891462155,-470.0,0.00028218,2]
[359281873,1745891462164,-470.0,0.00028218,2]
[359281874,1745891462174,-470.0,0.00028218,2]
[359281875,1745891462183,-787.86,0.00028218,2]
[359281876,1745891462192,-470.0,0.00028218,2]
[359281877,1745891462202,-1073.71,0.00028218,2]
[359281878,1745891462211,-534.24,0.00028218,2]
[359281879,1745891462221,-470.0,0.00028218,2]
[359281880,1745891462230,-470.0,0.00028218,2]
[359281881,1745891462240,-470.0,0.00028218,2]
[359281882,1745891462250,-470.0,0.00028218,2]
[359281883,1745891462260,-876.11,0.00028218,2]
[359281884,1745891462269,-704.63,0.00028218,2]
[359281885,1745891462279,-470.0,0.00028218,2]
[359281886,1745891462288,-491.93,0.00028218,2]
[359281887,1745891462298,-470.0,0.00028218,2]
[359281888,1745891462307,-470.0,0.00028218,2]
[359281889,1745891462316,-546.4,0.00028218,2]
[359281890,1745891462327,-470.0,0.00028218,2]
[359281891,1745891462336,-470.0,0.00028218,2]
[359281892,1745891462346,-151.0,0.00028218,7]
[359281893,1745891462356,-730.68,0.00028218,2]
[359281894,1745891462365,-321.51454191,0.00028218,2]
[359281895,1745891462375,-493.24,0.00028218,2]
[359281896,1745891462385,-470.0,0.00028218,2]
[359281897,1745891462395,-470.0,0.00028218,2]
[359281898,1745891462404,-470.0,0.00028218,2]
[359281899,1745891462414,-470.0,0.00028218,2]
[359281900,1745891462423,-534.35,0.00028218,2]
[359281901,1745891462433,-470.0,0.00028218,2]
[359281902,1745891462445,-470.0,0.00028218,2]
[359281903,1745891462454,-470.0,0.00028218,2]
[359281904,1745891462464,-470.0,0.00028218,2]
[359281905,1745891462474,-470.0,0.00028218,2]
[359281906,1745891462483,-470.0,0.00028218,2]
[359281907,1745891462493,-599.0,0.00028218,2]
[359281908,1745891462502,-707.83,0.00028218,2]
[359281909,1745891462511,-470.0,0.00028218,2]
[359281910,1745891462521,-892.56,0.00028218,2]
[359281911,1745891462530,-470.0,0.00028218,2]
[359281912,1745891462539,-151.0,0.00028218,7]
[359281913,1745891462549,-484.16,0.00028218,2]
[359281914,1745891462559,-470.0,0.00028218,2]
[359281915,1745891462569,-706.51,0.00028218,2]
[359281916,1745891462583,-151.0,0.00028218,7]
[359281917,1745891462594,-470.0,0.00028218,2]
[359281918,1745891462603,-631.09,0.00028218,2]
[359281919,1745891462613,-622.66,0.00028218,2]
[359281920,1745891462623,-731.19,0.00028218,2]
[359281921,1745891462632,-470.0,0.00028218,2]
[359281922,1745891462642,-131309.72,0.00028218,2]
[359281923,1745891462652,-470.0,0.00028218,2]
[359281924,1745891462662,-17218.54,0.00028218,2]
[359281925,1745891462673,-551.16,0.00028218,2]
[359281926,1745891462683,-470.0,0.00028218,2]
[359281927,1745891462695,-500.0,0.00028218,2]
[359281928,1745891462705,-746.58,0.00028218,2]
[359281929,1745891462715,-206.282,0.00028218,7]
[359281930,1745891462725,-829.18,0.00028218,2]
[359281931,1745891462735,-151.0,0.00028218,7]
[359281932,1745891462745,-470.0,0.00028218,2]
[359281933,1745891462755,-582.32,0.00028218,2]
[359281934,1745891462768,-661.28,0.00028218,2]
[359281935,1745891462780,-151.0,0.00028218,7]
[359281936,1745891462790,-206.282,0.00028218,7]
[359281937,1745891462799,-470.0,0.00028218,2]
[359281938,1745891462811,-470.0,0.00028218,2]
[359281939,1745891462827,-760.0,0.00028218,2]
[359281940,1745891462838,-572.98,0.00028218,2]
[359281941,1745891462847,-1706.88,0.00028218,2]
[359281942,1745891462857,-470.0,0.00028218,2]
[359281943,1745891462867,-470.0,0.00028218,2]
[359281944,1745891462876,-830.4,0.00028218,2]
[359281945,1745891462886,-470.0,0.00028218,2]
[359281946,1745891462896,-470.0,0.00028218,2]
[359281947,1745891462907,-1621.51,0.00028218,2]
[359281948,1745891462918,-573.74,0.00028218,2]
[359281949,1745891462928,-583.09,0.00028218,2]
[359281950,1745891462938,-470.0,0.00028218,2]
[359281951,1745891462949,-231.35730411,0.00028218,2]
[359281952,1745891462960,-470.0,0.00028218,2]
[359281953,1745891462969,-654.01,0.00028218,2]
[359281954,1745891462978,-470.0,0.00028218,2]
[359281955,1745891462987,-587.58,0.00028218,2]
[359281956,1745891462997,-825.51,0.00028218,2]
[359281957,1745891463007,-470.0,0.00028218,2]
[359281958,1745891463016,-151.0,0.00028218,7]
[359281959,1745891463026,-1262.26,0.00028218,2]
[359281960,1745891463036,-492.78,0.00028218,2]